Workbook

Sheet Feuil1

Sheet Feuil2 (hidden)

Sheet calcul (hidden)
D4: lambda w/m.K | E4: / | F4: épaisseur cm | G4: = | H4: U w/m².k | I4: R =1/U m².k/w | J4: dephasage heures | K4: Poids Kg/m² | L4: =IF(OR(COUNTIF($C$6:$C$15,"Ossature bois 1" )>0,COUNTIF($C$6:$C$15,"Ossature bois 2" )>0,COUNTIF($C$6:$C$15,"Ossature bois 3" )>0),"Ossature","") -> Ossature | N4: =IF(OR(COUNTIF($C$6:$C$15,"Ossature bois 1" )>0,COUNTIF($C$6:$C$15,"Ossature bois 2" )>0,COUNTIF($C$6:$C$15,"Ossature bois 3" )>0),"Remplissage","") -> Remplissage | O4: =IF(OR(COUNTIF($C$6:$C$15,"Ossature bois 1" )>0,COUNTIF($C$6:$C$15,"Ossature bois 2" )>0,COUNTIF($C$6:$C$15,"Ossature bois 3" )>0),"(λ isolant)","") -> (λ isolant) | Q4: Niveau | R4: T°C interface | S4: pour graphe | T4: Pvsat (Pa) | U4: Pv (Pa) | V4: Sd (m) | W4: Z | X4: Pvsat (normé) | Y4: Pv brut (normé) | Z4: Pv (normé) | AA4: Condensation | AB4: T°C interface pour hiver | AC4: Pvsat (Pa) pour hiver | AD4: Pv pour hiver | AE4: Plus grande diff hiver
B5: 20 | C5: 0.5 | I5: =IF(H16="plancher",0.7,IF(H16="toit",0.1,0.13)) -> 0.13 | J5: Résistance superficielle | Q5: 0 | R5: =IF(ISERR($I5),NA(),$B$5-($B$5-$B$16)/$F$19*SUM($I$5:$I5)) -> 19.61217511 | S5: =R5 -> 19.61217511 | T5: =IF($R5<0,4.688*(1.486+$R5/100)^12.3,288.58*(1.098+$R5/100)^8.02) -> 2281.953684 | U5: =T5*C5 -> 1140.976842 | W5: m²sPa/kg | X5: =T5/$T$5*30+25 -> 55 | Y5: =U5/$T$5*30+25 -> 40 | AA5: =MATCH(TRUE,AA6:AA15,0) -> 2 | AB5: =IF(ISERR($I5),NA(),20-30/$F$19*SUM($I$5:$I5)) -> 19.61217511 | AC5: =IF($R5<0,4.688*(1.486+$R5/100)^12.3,288.58*(1.098+$R5/100)^8.02) -> 2281.953684 | AD5: =AC5*50% -> 1140.976842 | AE5: =AC5-AD5 -> 1140.976842 | AF5: Min | AG5: =MIN(IF(NOT(ISERROR(AE5:AE16)),(AE5:AE16),0)) -> -244.9479989
B6: Panneaux | C6: Plaque plâtre BA... | D6: =IF(B6="Films","-",VLOOKUP(C6,données,5,0)) -> 0.25 | E6: =NOT(OR(B6="Films",C6="")) -> TRUE | F6: 1.3 | G6: =AND(C6<>"",OR(D6="-", ISNUMBER(D6)),ISNUMBER(F6)) -> TRUE | H6: =IF(E6,D6/(F6/100),"-") -> 19.23076923 | I6: =IF(E6,1/H6,"-") -> 0.052 | J6: =IF(E6,1.38*F6/100*SQRT(VLOOKUP($C6,données,3,0)*VLOOKUP($C6,données,4,0)/D6),"-") -> 0.5453287874 | K6: =IF(E6,VLOOKUP(C6,données,3,0)*F6/100,"-") -> 10.725 | L6: 600 | M6: 45 | O6: =(IF(N6<>"",VLOOKUP(N6,données,5,0),"")) ->  | Q6: =IF(AND(ISNUMBER(F6),NOT(ISERROR(H6))),F6+Q5,NA()) -> 1.3 | R6: =IF(ISERR($I6),NA(),$B$5-($B$5-$B$16)/$F$19*SUM($I$5:$I6)) -> 19.45704515 | S6: =IF(F6>1.5,R6,NA()) ->  | T6: =IF($R6<0,4.688*(1.486+$R6/100)^12.3,288.58*(1.098+$R6/100)^8.02) -> 2260.107531 | U6: =$U$5-($U$5-$U$16)/$W$16*SUM($W$6:$W6) -> 1127.870836 | V6: =IF(B6="Films",VLOOKUP(calcul!C6,données,6,0),F6/100*VLOOKUP(calcul!C6,données,6,0)) -> 0.091 | W6: =5.4*1000000000*V6 -> 491400000 | X6: =T6/$T$5*30+25 -> 54.71279671 | Y6: 39.8277002 | AA6: =IF(OR(ISERROR(Y6),ISERROR(X6)),FALSE,Y6>X6) -> FALSE | AB6: =IF(ISERR($I6),NA(),20-30/$F$19*SUM($I$5:$I6)) -> 19.45704515 | AC6: =IF($R6<0,4.688*(1.486+$R6/100)^12.3,288.58*(1.098+$R6/100)^8.02) -> 2260.107531 | AD6: =$AD$5-($AD$5-$AD$16)/$W$16*SUM($W$6:$W6) -> 1127.870836 | AE6: =AC6-AD6 -> 1132.236695 | AF6: Couche | AG6: =MATCH(AG5,AE6:AE15,0) -> 2
B7: Ossature_bois | C7: Ossature bois 1 | D7: 0.04741666667 | E7: TRUE | F7: 24 | G7: =AND(C7<>"",OR(D7="-", ISNUMBER(D7)),ISNUMBER(F7)) -> TRUE | H7: =IF(E7,D7/(F7/100),"-") -> 0.1975694444 | I7: =IF(E7,1/H7,"-") -> 5.061511424 | J7: 9.548632351 | K7: 22.9 | L7: 600 | M7: 45 | N7: cellulose | O7: 0.039 | Q7: =IF(AND(ISNUMBER(F7),NOT(ISERROR(H7))),F7+Q6,NA()) -> 25.3 | R7: =IF(ISERR($I7),NA(),$B$5-($B$5-$B$16)/$F$19*SUM($I$5:$I7)) -> 4.357198 | S7: =IF(F7>1.5,R7,NA()) -> 4.357198 | T7: 834.5314317 | U7: =$U$5-($U$5-$U$16)/$W$16*SUM($W$6:$W7) -> 1079.479431 | V7: =IF(B7="Films",VLOOKUP(calcul!C7,données,6,0),F7/100*VLOOKUP(calcul!C7,données,6,0)) -> 0.336 | W7: =5.4*1000000000*V7 -> 1814400000 | X7: =T7/$T$5*30+25 -> 35.97127568 | Y7: 39.19151631 | AA7: TRUE | AB7: =IF(ISERR($I7),NA(),20-30/$F$19*SUM($I$5:$I7)) -> 4.357198 | AC7: 834.5314317 | AD7: =$AD$5-($AD$5-$AD$16)/$W$16*SUM($W$6:$W7) -> 1079.479431 | AE7: -244.9479989 | AF7: Sat (g/s) | AG7: =1000*(AD5-OFFSET(AC5,AG6,0))/SUM(W6:OFFSET(W5,AG6,0))-(OFFSET(AC5,AG6,0)-AD16)/(W16-SUM(W6:OFFSET(W5,AG6,0))) -> 0.0001328828152
B8: Films | C8: Freine vapeur (Sd=5m) | D8: - | E8: =NOT(OR(B8="Films",C8="")) -> FALSE | F8: 0.4 | G8: TRUE | H8: - | I8: - | J8: - | K8: - | L8: 600 | M8: 45 | Q8: 25.7 | R8: =IF(ISERR($I8),NA(),$B$5-($B$5-$B$16)/$F$19*SUM($I$5:$I8)) -> 4.357198 | T8: 834.5314317 | U8: =$U$5-($U$5-$U$16)/$W$16*SUM($W$6:$W8) -> 359.3692266 | V8: =IF(B8="Films",VLOOKUP(calcul!C8,données,6,0),F8/100*VLOOKUP(calcul!C8,données,6,0)) -> 5 | W8: 27000000000 | X8: 35.97127568 | Y8: 29.72449413 | AA8: FALSE | AB8: =IF(ISERR($I8),NA(),20-30/$F$19*SUM($I$5:$I8)) -> 4.357198 | AC8: 834.5314317 | AD8: =$AD$5-($AD$5-$AD$16)/$W$16*SUM($W$6:$W8) -> 359.3692266 | AE8: 475.1622052 | AF8: temps (jours) | AG8: 60
B9: Ossature_bois | C9: Ossature bois 2 | D9: 0.04741666667 | E9: =NOT(OR(B9="Films",C9="")) -> TRUE | F9: 18 | G9: TRUE | H9: 0.2634259259 | I9: 3.796133568 | J9: 7.161474264 | K9: 17.175 | L9: 600 | M9: 45 | N9: cellulose | O9: 0.039 | Q9: 43.7 | R9: =IF(ISERR($I9),NA(),$B$5-($B$5-$B$16)/$F$19*SUM($I$5:$I9)) -> -6.967687362 | S9: -6.967687362 | T9: 339.066174 | U9: =$U$5-($U$5-$U$16)/$W$16*SUM($W$6:$W9) -> 323.0756723 | V9: =IF(B9="Films",VLOOKUP(calcul!C9,données,6,0),F9/100*VLOOKUP(calcul!C9,données,6,0)) -> 0.252 | W9: 1360800000 | X9: 29.45757742 | Y9: 29.24735622 | AA9: FALSE | AB9: =IF(ISERR($I9),NA(),20-30/$F$19*SUM($I$5:$I9)) -> -6.967687362 | AC9: 339.066174 | AD9: =$AD$5-($AD$5-$AD$16)/$W$16*SUM($W$6:$W9) -> 323.0756723 | AE9: 15.99050177 | AF9: Qsat | AG9: =AG7*AG8*24*3600 -> 688.864514
B10: Panneaux | C10: Panneau OSB | D10: 0.13 | E10: TRUE | F10: 1 | G10: TRUE | H10: 13 | I10: 0.07692307692 | J10: 0.6689798203 | K10: 6.5 | L10: 600 | M10: 45 | Q10: 44.7 | R10: =IF(ISERR($I10),NA(),$B$5-($B$5-$B$16)/$F$19*SUM($I$5:$I10)) -> -7.197169548 | T10: 332.3703446 | U10: =$U$5-($U$5-$U$16)/$W$16*SUM($W$6:$W10) -> 222.2602437 | V10: =IF(B10="Films",VLOOKUP(calcul!C10,données,6,0),F10/100*VLOOKUP(calcul!C10,données,6,0)) -> 0.7 | W10: 3780000000 | X10: 29.36954983 | Y10: 27.92197311 | AA10: FALSE | AB10: =IF(ISERR($I10),NA(),20-30/$F$19*SUM($I$5:$I10)) -> -7.197169548 | AC10: 332.3703446 | AD10: =$AD$5-($AD$5-$AD$16)/$W$16*SUM($W$6:$W10) -> 222.2602437 | AE10: 110.1101009 | AF10: Dp été | AG10: =288.58*(1.098+12/100)^8.02*30% -> 420.996743
B11: Films | C11: Pare-pluie (Sd=0,1) | D11: - | E11: FALSE | F11: 0.4 | G11: TRUE | H11: - | I11: - | J11: - | K11: - | L11: 600 | M11: 45 | Q11: 45.1 | R11: =IF(ISERR($I11),NA(),$B$5-($B$5-$B$16)/$F$19*SUM($I$5:$I11)) -> -7.197169548 | T11: 332.3703446 | U11: =$U$5-($U$5-$U$16)/$W$16*SUM($W$6:$W11) -> 207.8580396 | V11: =IF(B11="Films",VLOOKUP(calcul!C11,données,6,0),F11/100*VLOOKUP(calcul!C11,données,6,0)) -> 0.1 | W11: 540000000 | X11: 29.36954983 | Y11: 27.73263267 | AA11: FALSE | AB11: =IF(ISERR($I11),NA(),20-30/$F$19*SUM($I$5:$I11)) -> -7.197169548 | AC11: 332.3703446 | AD11: =$AD$5-($AD$5-$AD$16)/$W$16*SUM($W$6:$W11) -> 207.8580396 | AE11: 124.512305 | AF11: Evap (g/s) | AG11: =1000*(AG10/SUM(W6:OFFSET(W5,AG6,0))+AG10/(W16-OFFSET(W5,AG6,0))) -> 0.0001952728804
B12: Bardage_ventile | C12: Forfait RT 2005 : R=0,13 | D12: 0.05558540579 | E12: TRUE | F12: 5 | G12: TRUE | H12: 1.111708116 | I12: 0.8995166859 | J12: 0.002926635933 | K12: 0.0005 | L12: 600 | M12: 45 | Q12: 50.1 | R12: =IF(ISERR($I12),NA(),$B$5-($B$5-$B$16)/$F$19*SUM($I$5:$I12)) -> -9.880669264 | S12: -9.880669264 | T12: 262.5865738 | U12: =$U$5-($U$5-$U$16)/$W$16*SUM($W$6:$W12) -> 207.8573195 | V12: =IF(B12="Films",VLOOKUP(calcul!C12,données,6,0),F12/100*VLOOKUP(calcul!C12,données,6,0)) -> 5e-06 | W12: 27000 | X12: 28.45212844 | Y12: 27.7326232 | AA12: FALSE | AB12: =IF(ISERR($I12),NA(),20-30/$F$19*SUM($I$5:$I12)) -> -9.880669264 | AC12: 262.5865738 | AD12: =$AD$5-($AD$5-$AD$16)/$W$16*SUM($W$6:$W12) -> 207.8573195 | AE12: 54.7292543 | AF12: temps (jours) | AG12: 90
E13: FALSE | F13: - | H13: - | I13: - | J13: - | K13: - | L13: 600 | M13: 45 | R13: =IF(ISERR($I13),NA(),$B$5-($B$5-$B$16)/$F$19*SUM($I$5:$I13)) -> -9.880669264 | S13: -9.880669264 | T13: 262.5865738 | U13: =$U$5-($U$5-$U$16)/$W$16*SUM($W$6:$W13) ->  | V13: =IF(B13="Films",VLOOKUP(calcul!C13,données,6,0),F13/100*VLOOKUP(calcul!C13,données,6,0)) ->  | X13: 28.45212844 | AA13: FALSE | AB13: =IF(ISERR($I13),NA(),20-30/$F$19*SUM($I$5:$I13)) -> -9.880669264 | AC13: 262.5865738 | AD13: =$AD$5-($AD$5-$AD$16)/$W$16*SUM($W$6:$W13) ->  | AF13: Qevap | AG13: =AG11*AG12*24*3600 -> 1518.441918
E14: FALSE | F14: - | H14: - | I14: - | J14: - | K14: - | L14: 600 | M14: 45 | R14: =IF(ISERR($I14),NA(),$B$5-($B$5-$B$16)/$F$19*SUM($I$5:$I14)) -> -9.880669264 | S14: -9.880669264 | T14: 262.5865738 | U14: =$U$5-($U$5-$U$16)/$W$16*SUM($W$6:$W14) ->  | V14: =IF(B14="Films",VLOOKUP(calcul!C14,données,6,0),F14/100*VLOOKUP(calcul!C14,données,6,0)) ->  | X14: 28.45212844 | AA14: FALSE | AB14: =IF(ISERR($I14),NA(),20-30/$F$19*SUM($I$5:$I14)) -> -9.880669264 | AC14: 262.5865738 | AD14: =$AD$5-($AD$5-$AD$16)/$W$16*SUM($W$6:$W14) ->  | AF14: Pot évaporation | AG14: =AG13-AG9 -> 829.5774037
E15: FALSE | F15: - | H15: - | I15: - | J15: - | K15: - | L15: 600 | M15: 45 | R15: =IF(ISERR($I15),NA(),$B$5-($B$5-$B$16)/$F$19*SUM($I$5:$I15)) -> -9.880669264 | S15: -9.880669264 | T15: 262.5865738 | U15: =$U$5-($U$5-$U$16)/$W$16*SUM($W$6:$W15) ->  | V15: =IF(B15="Films",VLOOKUP(calcul!C15,données,6,0),F15/100*VLOOKUP(calcul!C15,données,6,0)) ->  | X15: 28.45212844 | AA15: TRUE | AB15: =IF(ISERR($I15),NA(),20-30/$F$19*SUM($I$5:$I15)) -> -9.880669264 | AC15: 262.5865738 | AD15: =$AD$5-($AD$5-$AD$16)/$W$16*SUM($W$6:$W15) -> 
B16: -10 | C16: 0.8 | F16: Situation : | G16: =COUNTIF(G6:G15,TRUE) -> 7 | H16: mur | I16: 0.04 | J16: Résistance superficielle | N16: Chènevotte | R16: =IF(ISERR($I16),NA(),$B$5-($B$5-$B$16)/$F$19*SUM($I$5:$I16)) -> -10 | S16: =R16 -> -10 | T16: 259.8216494 | U16: =T16*C16 -> 207.8573195 | V16: =SUM(IF(ISNUMBER(V6:V15),V6:V15)) -> 6.479005 | W16: =SUM(IF(ISNUMBER(W6:W15),W6:W15)) -> 34986627000 | Y16: 27.7326232 | AB16: =IF(ISERR($I16),NA(),20-30/$F$19*SUM($I$5:$I16)) -> -10 | AC16: 259.8216494 | AD16: =AC16*80% -> 207.8573195 | AE16: 51.96432988
R17: =T17*V17*W17 -> 1 | S17: =R17 -> 1 | T17: =ISNUMBER(T16) -> TRUE | V17: =ISNUMBER(INDEX(V6:V16,G16)) -> TRUE | W17: =ISNUMBER(INDEX(W6:W16,G16)) -> TRUE | Z17: Objectif : 1,06Kj/m²K
C18: épaisseur | D18: U | F18: R =1/U | H18: dephasage | I18: Poids
B19: TOTAL = | C19: =SUM(IF(ISNUMBER(F6:F15),F6:F15)) -> 50.1 | D19: =1/F19 -> 0.09944228042 | F19: =SUM(IF(ISNUMBER(I5:I16),I5:I16)) -> 10.05608475 | H19: =SUM(IF(ISNUMBER(J6:J15),J6:J15)) -> 17.92734186 | I19: =SUM(IF(ISNUMBER(K6:K15),K6:K15)) -> 57.3005

Sheet Aide (hidden)

Sheet données
B1: Epaisseur (cm) | C1: Masse volumique (Kg/m3) | D1: Chaleur spécifique (Wh/Kg.K) | E1: Lambda (W/mK) | F1: R diff vapeur (µ) Sd (m) pour les Films | G1: Effusivité (J/Ksm) =√(λρc) | H1: Energie grise (Kwh/m3) | I1: feu (EN 13 501-1) | J1: format standard | K1: Classe | Q1: entraxe (cm) | S1: isolant
A2: Forfait RT 2005 : R=0,13 | B2: 5 | C2: 0.01 | D2: 0.01 | E2: 0.05558540579 | F2: 0.0001 | G2: =SQRT(C2*D2*3600*E2) -> 0.1414593443 | K2: Bardage_ventile
A3: Bloc béton (Parpaing de ciment) | B3: 20 | C3: 1100 | D3: 0.2777777778 | E3: 0.952 | F3: 10 | G3: 1023.327904 | H3: 275 | K3: Blocs
A4: Bloc pierre ponce type Cogetherm | C4: 700 | D4: 0.2777777778 | E4: 0.133 | F4: 15 | G4: 305.122926 | H4: 161 | K4: Blocs
A5: Brique à alvéoles | B5: 30 | C5: 850 | D5: 0.25 | E5: 0.149 | F5: 8 | G5: 337.6166465 | K5: Blocs
A6: Brique à alvéoles 37,5 | B6: 37.5 | C6: 782 | D6: 0.22 | E6: 0.6 | F6: 35 | G6: 609.5952756 | K6: Blocs
A7: Brique Argelis 20 | B7: 20 | C7: 720 | D7: 0.22 | E7: 1.69 | F7: 35 | G7: 981.6850819 | K7: Blocs
A8: Brique creuse à joints minces | B8: 20 | C8: 650 | D8: 0.25 | E8: 0.267 | F8: 8 | G8: 395.2151313 | K8: Blocs
A9: Brique creuse standard | B9: 20 | C9: 650 | D9: 0.25 | E9: 0.45 | F9: 8 | G9: 513.0789413 | K9: Blocs
A10: Brique Gélis 37,5 | B10: 37.5 | C10: 808 | D10: 0.22 | E10: 0.5 | F10: 35 | G10: 565.65714 | K10: Blocs
A11: Brique standard 20 cm | B11: 20 | C11: 650 | D11: 0.2777777778 | E11: 0.39 | F11: 13 | G11: 503.487835 | H11: 696 | K11: Blocs
A12: Briques pleines (cuites) | C12: 1850 | D12: 0.2777777778 | E12: 1 | F12: 10 | G12: 1360.147051 | H12: 1443 | K12: Blocs
A13: Briquettes de parement | C13: 1850 | D13: 0.2777777778 | E13: 0.833 | F13: 10 | G13: 1241.39035 | H13: 500 | K13: Blocs
A14: Hourdi terre cuite | B14: 16 | C14: 1111 | D14: 0.22 | E14: 4.76 | F14: 35 | G14: 2046.553474 | K14: Blocs
A15: Hourdis béton | B15: 12 | C15: 1300 | D15: 0.18 | E15: 9.09 | F15: 10 | G15: 2767.203643 | K15: Blocs
A16: Hourdis PPB ISO5 4 | B16: 25 | C16: 1527 | D16: 0.26 | E16: 0.66 | G16: 971.2463745 | K16: Blocs
A17: Meulières | C17: 2200 | D17: 0.2777777778 | E17: 1.8 | F17: 45 | G17: 1989.974874 | H17: 0 | K17: Blocs
A18: Monomur | C18: 740 | D18: 0.2777777778 | E18: 0.12 | F18: 13 | G18: 297.9932885 | H18: 740 | K18: Blocs
A19: Bois léger brut, séché à l'air (sapin, épicéa) | C19: 540 | D19: 0.6666666667 | E19: 0.14 | F19: 35 | G19: 425.9577444 | H19: 329 | K19: Bois
A20: Bois léger, raboté, étuvé (sapin, épicéa) | C20: 500 | D20: 0.6666666667 | E20: 0.14 | F20: 35 | G20: 409.8780306 | H20: 610 | K20: Bois
A21: Bois lourd (hêtre, chêne) | C21: 800 | D21: 0.75 | E21: 0.2 | F21: 35 | G21: 657.267069 | H21: 560 | K21: Bois
A22: Linoléum naturel | C22: 700 | D22: 0.53 | E22: 0.081 | F22: 1800 | G22: 328.9127544 | K22: Bois
A23: Etancheité PVC BRAS RHENOFOL (Sd=2400m) | C23: 1.5 | D23: 0.28 | E23: 0.16 | F23: 2400 | K23: Films
A24: Freine vapeur (Sd=100m) | C24: 130 | D24: 0.6388888889 | E24: 2.3 | F24: 100 | G24: =SQRT(C24*D24*3600*E24) -> 829.2767934 | H24: 0 | K24: Films
A25: Freine vapeur (Sd=10m) | C25: 130 | D25: 0.6388888889 | E25: 2.3 | F25: 10 | G25: 829.2767934 | H25: 0 | K25: Films
A26: Freine vapeur (Sd=1m) | C26: 130 | D26: 0.6388888889 | E26: 2.3 | F26: 1 | G26: 829.2767934 | H26: 0 | K26: Films
A27: Freine vapeur (Sd=20m) | C27: 130 | D27: 0.6388888889 | E27: 2.3 | F27: 20 | G27: 829.2767934 | H27: 0 | K27: Films
A28: Freine vapeur (Sd=2m) | C28: 130 | D28: 0.6388888889 | E28: 2.3 | F28: 2 | G28: 829.2767934 | H28: 0 | K28: Films
A29: Freine vapeur (Sd=50m) | C29: 130 | D29: 0.6388888889 | E29: 2.3 | F29: 50 | G29: 829.2767934 | H29: 0 | K29: Films
A30: Freine vapeur (Sd=5m) | C30: 130 | D30: 0.6388888889 | E30: 2.3 | F30: 5 | G30: 829.2767934 | H30: 0 | K30: Films
A31: Freine vapeur ISOVER VARIO DUPLEX(Sd=0,2 à 4,5m / compté 3m) | C31: 80 | D31: 0.6388888889 | E31: 2.3 | F31: 3 | H31: =SQRT(C31*D31*3600*E31) -> 650.5382387 | I31: 0 | K31: Films
A32: Papier Kraft (Sd = 3m) | C32: 120 | D32: 0.4166666667 | E32: 0.42 | F32: 3 | G32: =SQRT(C32*D32*3600*E32) -> 274.9545417 | H32: 0 | K32: Films
A33: Papier-peint vinyl (Sd = 12m) | C33: 829 | D33: 0.6388888889 | E33: 100 | F33: 12 | G33: 13808.33082 | H33: 0 | K33: Films
A34: Pare-pluie (Sd=0,05) | C34: 130 | D34: 0.6388888889 | E34: 2.3 | F34: 0.05 | G34: 829.2767934 | H34: 0 | K34: Films
A35: Pare-pluie (Sd=0,1) | C35: 130 | D35: 0.6388888889 | E35: 2.3 | F35: 0.1 | G35: 829.2767934 | H35: 0 | K35: Films
A36: Pare-pluie (Sd=0,2) | C36: 130 | D36: 0.6388888889 | E36: 2.3 | F36: 0.2 | G36: 829.2767934 | H36: 0 | K36: Films
A37: Pare-pluie (Sd=0,5) | C37: 130 | D37: 0.6388888889 | E37: 2.3 | F37: 0.5 | G37: 829.2767934 | H37: 0 | K37: Films
A38: Pare-Vapeur (Sd=1500m) | C38: 130 | D38: 0.6388888889 | E38: 2.3 | F38: 1500 | G38: 829.2767934 | H38: 0 | K38: Films
A39: cellulose | C39: 55 | D39: 0.39 | E39: 0.039 | F39: 1.4 | G39: 54.87786439 | K39: Isolants_et_plastiques
A40: cellulose (panneau) | C40: 100 | D40: 0.39 | E40: 0.04 | F40: 1.4 | G40: 74.93997598 | K40: Isolants_et_plastiques
A41: Cellulose injectée | C41: 55 | D41: 0.5277777778 | E41: 0.042 | F41: 1 | G41: 66.2495283 | H41: 98 | K41: Isolants_et_plastiques
A42: cellulose soufflée | C42: 23 | D42: 0.39 | E42: 0.043 | F42: 1.4 | G42: 37.26333318 | K42: Isolants_et_plastiques
A43: Chènevotte | C43: 110 | D43: 0.54 | E43: 0.048 | G43: 101.3129804 | K43: Isolants_et_plastiques
A44: Feutre bitumeux | C44: 1700 | D44: 0.278 | E44: 0.5 | G44: 922.3231538 | K44: Isolants_et_plastiques
A45: Fibre de bois à insuffler | C45: 38 | D45: 0.583 | E45: 0.04 | F45: 0.5 | G45: 56.48164304 | K45: Isolants_et_plastiques
A46: Icynene | C46: 25 | D46: 0.3 | E46: 0.039 | F46: 1000000000 | G46: 32.44996148 | K46: Isolants_et_plastiques
A47: Isochanvre Construction | C47: 550 | D47: 0.39 | E47: 0.13 | F47: 1.3 | G47: 316.8374978 | K47: Isolants_et_plastiques
A48: Laine de chanvre, lin, coton | C48: 40 | D48: 0.4444444444 | E48: 0.04 | F48: 1 | G48: 50.59644256 | H48: 48 | K48: Isolants_et_plastiques
A49: Laine de mouton et autres fibres animales | C49: 35 | D49: 0.4444444444 | E49: 0.06 | F49: 1 | G49: 57.96550698 | H49: 56 | K49: Isolants_et_plastiques
A50: Laine de roche 110kg/m3 | C50: 113 | D50: 0.2861111111 | E50: 0.044 | F50: 1 | G50: 71.56228057 | H50: 697 | K50: Isolants_et_plastiques
A51: Laine de roche 140kg/m3 | C51: 138 | D51: 0.2861111111 | E51: 0.046 | F51: 1 | G51: 80.86062082 | H51: 851 | K51: Isolants_et_plastiques
A52: Laine de roche 160kg/m3 | C52: 163 | D52: 0.2861111111 | E52: 0.047 | F52: 1 | G52: 88.83034391 | H52: 1006 | K52: Isolants_et_plastiques
A53: Laine de roche 20kg/m3 (rouleaux) | C53: 20 | D53: 0.2861111111 | E53: 0.05 | F53: 1 | G53: 32.09361307 | H53: 123 | K53: Isolants_et_plastiques
A54: Laine de roche 70kg/m3 | C54: 70 | D54: 0.2861111111 | E54: 0.042 | F54: 1 | G54: 55.02908322 | H54: 432 | K54: Isolants_et_plastiques
A55: Laine de roche en vrac | C55: 35 | D55: 0.2861111111 | E55: 0.065 | F55: 1 | G55: 48.40712757 | H55: 216 | K55: Isolants_et_plastiques
A56: Laine de Verre - Isover Isoconfort 32 | C56: 30 | D56: 0.286 | E56: 0.032 | F56: 1 | H56: =SQRT(C56*D56*3600*E56) -> 31.43908396 | K56: Isolants_et_plastiques
A57: Laine de verre 100kg/m3 | C57: 100 | D57: 0.2861111111 | E57: 0.039 | F57: 1 | G57: =SQRT(C57*D57*3600*E57) -> 63.37980751 | K57: Isolants_et_plastiques
A58: Laine de verre 18kg/m3 (rouleaux) | C58: 18 | D58: 0.2861111111 | E58: 0.044 | F58: 1 | G58: 28.56151256 | H58: 242 | K58: Isolants_et_plastiques
A59: Laine de verre 35kg/m3 | C59: 35 | D59: 0.2861111111 | E59: 0.039 | F59: 1 | G59: 37.49599979 | H59: 470 | K59: Isolants_et_plastiques
A60: Laine de verre 60kg/m3 | C60: 60 | D60: 0.2861111111 | E60: 0.038 | F60: 1 | G60: 48.46029302 | H60: 806 | K60: Isolants_et_plastiques
A61: Laine de verre 80kg/m3 | C61: 80 | D61: 0.2861111111 | E61: 0.035 | F61: 1 | G61: 53.70288633 | H61: 1344 | K61: Isolants_et_plastiques
A62: Liège expansé conforme norme NF EN 13170 | C62: 125 | D62: 0.4333333333 | E62: 0.049 | F62: 1 | G62: 97.74968031 | H62: 450 | K62: Isolants_et_plastiques
A63: Mousse de polyuréthanne 30kg/m3 (plaques moulées) | C63: 34 | D63: 0.4027777778 | E63: 0.029 | F63: 150 | G63: 37.81137395 | H63: 974 | K63: Isolants_et_plastiques
A64: Mousse de polyuréthanne 30kg/m3 (plaques moulées) | C64: 34 | D64: 0.4027777778 | E64: 0.029 | F64: 150 | H64: =SQRT(C64*D64*3600*E64) -> 37.81137395 | I64: 974 | K64: Isolants_et_plastiques
A65: Paille (bottes à plat) | B65: 45 | C65: 83 | D65: 0.37 | E65: 0.05 | F65: 1 | G65: =SQRT(C65*D65*3600*E65) -> 74.34917619 | H65: 0 | K65: Isolants_et_plastiques
A66: Paille (bottes sur chant) | B66: 35 | C66: 83 | D66: 0.37 | E66: 0.045 | F66: 1 | G66: 70.53382167 | H66: 0 | K66: Isolants_et_plastiques
A67: Paille compactée | C67: 350 | D67: 0.39 | E67: 0.12 | G67: 242.8332761 | K67: Isolants_et_plastiques
A68: Panneau de liège | C68: 120 | D68: 0.39 | E68: 0.04 | F68: 10 | G68: 82.09263061 | H68: 85 | K68: Isolants_et_plastiques
A69: Panneau de roseaux | C69: 225 | D69: 0.39 | E69: 0.056 | F69: 10 | G69: 133.0052631 | K69: Isolants_et_plastiques
A70: Panneaux laine de bois 140 kg / m3 | C70: 140 | D70: 0.5833333333 | E70: 0.042 | F70: 5 | G70: 111.1215551 | H70: 161 | K70: Isolants_et_plastiques
A71: Panneaux laine de bois 190 kg / m3 | C71: 190 | D71: 0.5833333333 | E71: 0.05 | F71: 5 | G71: 141.2444689 | H71: 219 | K71: Isolants_et_plastiques
A72: Panneaux laine de bois 50 kg / m3 | C72: 50 | D72: 0.5833333333 | E72: 0.039 | F72: 5 | G72: 63.99218702 | H72: 58 | K72: Isolants_et_plastiques
A73: Perlite en vrac | C73: 70 | D73: 0.25 | E73: 0.06 | F73: 2 | G73: 61.4817046 | H73: 329 | K73: Isolants_et_plastiques
A74: Perlite expansée 200 kg/m3 (plaques) | C74: 200 | D74: 0.25 | E74: 0.06 | F74: 20 | G74: 103.9230485 | H74: 940 | K74: Isolants_et_plastiques
A75: Polycarbonate | C75: 1200 | D75: 0.35 | E75: 0.23 | F75: 1000000000 | G75: 589.711794 | K75: Isolants_et_plastiques
A76: Polystyrène expansé | C76: 18 | D76: 0.4027777778 | E76: 0.039 | F76: 60 | G76: 31.90454513 | H76: 500 | K76: Isolants_et_plastiques
A77: Polystyrène expansé RT+ | C77: 18 | D77: 0.4027777778 | E77: 0.032 | F77: 60 | G77: 28.89982699 | K77: Isolants_et_plastiques
A78: Polystyrène extrudé (Plaques expansées aux HCFC) | C78: 34 | D78: 0.4027777778 | E78: 0.035 | F78: 150 | G78: 41.53913817 | H78: 795 | K78: Isolants_et_plastiques
A79: polyuréthane | B79: 16 | C79: 35 | D79: 0.233 | E79: 0.027 | F79: 1000000000 | G79: 28.15432471 | H79: 1100 | K79: Isolants_et_plastiques
A80: polyuréthane canadienne | C80: 6.1 | D80: 0.233 | E80: 0.038 | F80: 3.3 | G80: 13.94395353 | K80: Isolants_et_plastiques
A81: Ponces naturelles | C81: 400 | D81: 0.2777777778 | E81: 0.12 | F81: 7 | G81: 219.089023 | H81: 16 | K81: Isolants_et_plastiques
A82: PVC | C82: 1379 | D82: 0.28 | E82: 0.16 | F82: 30000 | G82: 471.5984733 | K82: Isolants_et_plastiques
A83: Verre cellulaire 160kg/m3 (plaques) | C83: 160 | D83: 0.2777777778 | E83: 0.057 | F83: 1500000 | G83: 95.49869109 | H83: 1200 | K83: Isolants_et_plastiques
A84: Mur-0,5 cm | B84: 0.5 | C84: 1.23 | D84: 0.28 | E84: 0.04576538508 | F84: 1 | H84: =SQRT(C84*D84*3600*E84) -> 7.53271233 | I84: 0 | K84: Lame_dair
A85: Mur-0,7 cm | B85: 0.7 | C85: 1.23 | D85: 0.28 | E85: 0.05354066533 | F85: 1 | H85: 8.147506275 | I85: 0 | K85: Lame_dair
A86: Mur-1 cm | B86: 1 | C86: 1.23 | D86: 0.28 | E86: 0.06670029013 | F86: 1 | H86: 9.093826901 | I86: 0 | K86: Lame_dair
A87: Mur-1,5 cm | B87: 1.5 | C87: 1.23 | D87: 0.28 | E87: 0.088316 | F87: 1 | H87: 10.46411532 | I87: 0 | K87: Lame_dair
A88: Mur-10 cm | B88: 10 | C88: 1.23 | D88: 0.28 | E88: 0.5584089813 | F88: 1 | H88: 26.31231254 | I88: 0 | K88: Lame_dair
A89: Mur-2,5 cm | B89: 2.5 | C89: 1.23 | D89: 0.28 | E89: 0.1391152363 | F89: 1 | H89: 13.13318829 | I89: 0 | K89: Lame_dair
A90: Mur-3 cm | B90: 3 | C90: 1.23 | D90: 0.28 | E90: 0.1670484339 | F90: 1 | H90: 14.39143253 | I90: 1 | K90: Lame_dair
A91: Mur-3,5 cm | B91: 3.5 | C91: 1.23 | D91: 0.28 | E91: 0.1946285153 | F91: 1 | H91: 15.53409857 | I91: 2 | K91: Lame_dair
A92: Mur-30 cm | B92: 30 | C92: 1.23 | D92: 0.28 | E92: 1.664844521 | F92: 1 | H92: 45.43281668 | I92: 0 | K92: Lame_dair
A93: Mur-4 cm | B93: 4 | C93: 1.23 | D93: 0.28 | E93: 0.2226266438 | F93: 1 | H93: 16.61389232 | I93: 3 | K93: Lame_dair
A94: Mur-4,5 cm | B94: 4.5 | C94: 1.23 | D94: 0.28 | E94: 0.249857085 | F94: 1 | H94: 17.60064795 | I94: 4 | K94: Lame_dair
A95: Mur-5 cm | B95: 5 | C95: 1.23 | D95: 0.28 | E95: 0.27857584 | F95: 1 | H95: 18.58465683 | I95: 0 | K95: Lame_dair
A96: Plafond-0,5 cm | B96: 0.5 | C96: 1.23 | D96: 0.28 | E96: 0.04576538508 | F96: 1 | H96: 7.53271233 | I96: 0 | K96: Lame_dair
A97: Plafond-0,7 cm | B97: 0.7 | C97: 1.23 | D97: 0.28 | E97: 0.05354066533 | F97: 1 | H97: 8.147506275 | I97: 0 | K97: Lame_dair
A98: Plafond-1 cm | B98: 1 | C98: 1.23 | D98: 0.28 | E98: 0.06670029013 | F98: 1 | H98: 9.093826901 | I98: 0 | K98: Lame_dair
A99: Plafond-1,5 cm | B99: 1.5 | C99: 1.23 | D99: 0.28 | E99: 0.094064 | F99: 1 | H99: 10.79927358 | I99: 0 | K99: Lame_dair
A100: Plafond-10 cm | B100: 10 | C100: 1.23 | D100: 0.28 | E100: 0.62786624 | F100: 1 | H100: 27.90078277 | I100: 0 | K100: Lame_dair
A101: Plafond-2,5 cm | B101: 2.5 | C101: 1.23 | D101: 0.28 | E101: 0.1561692228 | F101: 1 | H101: 13.91491463 | I101: 0 | K101: Lame_dair
A102: Plafond-3 cm | B102: 3 | C102: 1.23 | D102: 0.28 | E102: 0.1881254296 | F102: 1 | H102: 15.27237482 | I102: 1 | K102: Lame_dair
A103: Plafond-3,5 cm | B103: 3.5 | C103: 1.23 | D103: 0.28 | E103: 0.2179077966 | F103: 1 | H103: 16.43687326 | I103: 2 | K103: Lame_dair
A104: Plafond-30 cm | B104: 30 | C104: 1.23 | D104: 0.28 | E104: 1.866459897 | F104: 1 | H104: 48.10521425 | I104: 0 | K104: Lame_dair
A105: Plafond-4 cm | B105: 4 | C105: 1.23 | D105: 0.28 | E105: 0.249857085 | F105: 1 | H105: 17.60064795 | I105: 3 | K105: Lame_dair
A106: Plafond-4,5 cm | B106: 4.5 | C106: 1.23 | D106: 0.28 | E106: 0.2816456296 | F106: 1 | H106: 18.68677386 | I106: 4 | K106: Lame_dair
A107: Plafond-5 cm | B107: 5 | C107: 1.23 | D107: 0.28 | E107: 0.31445696 | F107: 1 | H107: 19.74528595 | I107: 0 | K107: Lame_dair
A108: Sol-0,5 cm | B108: 0.5 | C108: 1.23 | D108: 0.28 | E108: 0.04576538508 | F108: 1 | H108: 7.53271233 | I108: 0 | K108: Lame_dair
A109: Sol-0,7 cm | B109: 0.7 | C109: 1.23 | D109: 0.28 | E109: 0.05354066533 | F109: 1 | H109: 8.147506275 | I109: 0 | K109: Lame_dair
A110: Sol-1 cm | B110: 1 | C110: 1.23 | D110: 0.28 | E110: 0.06670029013 | F110: 1 | H110: 9.093826901 | I110: 0 | K110: Lame_dair
A111: Sol-1,5 cm | B111: 1.5 | C111: 1.23 | D111: 0.28 | E111: 0.088316 | F111: 1 | H111: 10.46411532 | I111: 0 | K111: Lame_dair
A112: Sol-10 cm | B112: 10 | C112: 1.23 | D112: 0.28 | E112: 0.4549381984 | F112: 1 | H112: 23.74974897 | I112: 0 | K112: Lame_dair
A113: Sol-2,5 cm | B113: 2.5 | C113: 1.23 | D113: 0.28 | E113: 0.1316120464 | F113: 1 | H113: 12.77410974 | I113: 0 | K113: Lame_dair
A114: Sol-3 cm | B114: 3 | C114: 1.23 | D114: 0.28 | E114: 0.1429267558 | F114: 1 | H114: 13.311886 | I114: 0 | K114: Lame_dair
A115: Sol-3,5 cm | B115: 3.5 | C115: 1.23 | D115: 0.28 | E115: 0.1670484339 | F115: 1 | H115: 14.39143253 | I115: 0 | K115: Lame_dair
A116: Sol-30 cm | B116: 30 | C116: 1.23 | D116: 0.28 | E116: 1.304128097 | F116: 1 | H116: 40.21082168 | I116: 0 | K116: Lame_dair
A117: Sol-4 cm | B117: 4 | C117: 1.23 | D117: 0.28 | E117: 0.1908479864 | F117: 1 | H117: 15.38248899 | I117: 0 | K117: Lame_dair
A118: Sol-4,5 cm | B118: 4.5 | C118: 1.23 | D118: 0.28 | E118: 0.2147321293 | F118: 1 | H118: 16.31666275 | I118: 0 | K118: Lame_dair
A119: Sol-5 cm | B119: 5 | C119: 1.23 | D119: 0.28 | E119: 0.2372937044 | F119: 1 | H119: 17.15244083 | I119: 0 | K119: Lame_dair
A120: Enduit de chaux | C120: 1600 | D120: 0.2361111111 | E120: 0.7 | F120: 7 | G120: =SQRT(C120*D120*3600*E120) -> 975.7048734 | H120: 1040 | K120: Mortiers_et_plâtres
A121: Enduit de ciment | C121: 1900 | D121: 0.2361111111 | E121: 0.8 | F121: 25 | G121: 1136.661779 | H121: 1235 | K121: Mortiers_et_plâtres
A122: Enduit extérieur | C122: 1700 | D122: 0.278 | E122: 1.15 | F122: 30 | G122: 1398.772319 | K122: Mortiers_et_plâtres
A123: Enduit plâtre | C123: 1500 | D123: 0.278 | E123: 0.35 | F123: 9 | G123: 724.8586069 | K123: Mortiers_et_plâtres
A124: Enduit terre (adobe crue) | C124: 1450 | D124: 0.2361111111 | E124: 0.635 | F124: 10 | G124: 884.6680168 | H124: 102 | K124: Mortiers_et_plâtres
A125: Mortier | C125: 2000 | D125: 0.233 | E125: 1.15 | F125: 25 | G125: 1388.970842 | K125: Mortiers_et_plâtres
A126: Pisé (2000 kg / m3) | C126: 2000 | D126: 0.2222222222 | E126: 1.2 | F126: 10 | G126: 1385.640646 | H126: 100 | K126: Mortiers_et_plâtres
A127: Plâtre + cellulose | C127: 1200 | D127: 0.222 | E127: 0.3 | F127: 9 | G127: 536.3879193 | K127: Mortiers_et_plâtres
A128: Plâtre + fibres minérales | C128: 1000 | D128: 0.222 | E128: 0.3 | F128: 9 | G128: 489.6529383 | K128: Mortiers_et_plâtres
A129: Plâtre courant | C129: 1000 | D129: 0.222 | E129: 0.35 | F129: 9 | G129: 528.8856209 | K129: Mortiers_et_plâtres
A130: Plâtre gypse | C130: 1200 | D130: 0.233 | E130: 0.42 | F130: 9 | G130: 650.1962781 | K130: Mortiers_et_plâtres
A131: Terre crue stabilisée | C131: 1950 | D131: 0.2361111111 | E131: 0.87 | F131: 8 | G131: 1200.843454 | H131: 780 | K131: Mortiers_et_plâtres
A132: Ossature bois 1 | C132: =(VLOOKUP(S132,données,3,0)*(Q132-5)+$C$19*5)/Q132 -> 95.41666667 | D132: =(VLOOKUP(S132,données,4,0)*(Q132-5)+$D$19*5)/Q132 -> 0.4130555556 | E132: =(VLOOKUP(S132,données,5,0)*(Q132-5)+$E$19*5)/Q132 -> 0.04741666667 | F132: =VLOOKUP(S132,données,6,0) -> 1.4 | H132: =(VLOOKUP(S132,données,8,0)*(Q132-5)+H136*5)/Q132 -> 0 | K132: Ossature_bois | Q132: =VLOOKUP(A132,composition,10,0)/10 -> 60 | R132: =VLOOKUP(B132,composition,11,0)/10 ->  | S132: =VLOOKUP(A132,composition,12,0) -> cellulose
A133: Ossature bois 2 | C133: =(VLOOKUP(S133,données,3,0)*(Q133-5)+$C$19*5)/Q133 -> 95.41666667 | D133: =(VLOOKUP(S133,données,4,0)*(Q133-5)+$D$19*5)/Q133 -> 0.4130555556 | E133: =(VLOOKUP(S133,données,5,0)*(Q133-5)+$E$19*5)/Q133 -> 0.04741666667 | F133: =VLOOKUP(S133,données,6,0) -> 1.4 | H133: =(VLOOKUP(S133,données,8,0)*(Q133-5)+H136*5)/Q133 -> 0 | K133: Ossature_bois | Q133: =VLOOKUP(A133,composition,10,0)/10 -> 60 | R133: =VLOOKUP(B133,composition,11,0)/10 ->  | S133: =VLOOKUP(A133,composition,12,0) -> cellulose
A134: Ossature bois 3 | C134: =(VLOOKUP(S134,données,3,0)*(Q134-5)+$C$19*5)/Q134 ->  | D134: =(VLOOKUP(S134,données,4,0)*(Q134-5)+$D$19*5)/Q134 ->  | E134: =(VLOOKUP(S134,données,5,0)*(Q134-5)+$E$19*5)/Q134 ->  | F134: =VLOOKUP(S134,données,6,0) ->  | H134: =(VLOOKUP(S134,données,8,0)*(Q134-5)+H136*5)/Q134 ->  | K134: Ossature_bois | Q134: =VLOOKUP(A134,composition,10,0)/10 ->  | R134: =VLOOKUP(B134,composition,11,0)/10 ->  | S134: =VLOOKUP(A134,composition,12,0) -> 
A135: Ossature métalique (type rail placo) | B135: 2.7 | C135: =VLOOKUP(S135,données,3,0) ->  | D135: =(VLOOKUP(S135,données,4,0)) ->  | E135: =VLOOKUP(S135,données,5,0)+0.07*10/6*VLOOKUP(Ossature_metal,composition,4,0)/100 ->  | F135: =VLOOKUP(S135,données,6,0) ->  | K135: Ossature_metal | S135: =VLOOKUP(A135,composition,12,0) -> 
A136: Contreventement volige | B136: 1.8 | C136: 500 | D136: 0.667 | E136: 0.14 | F136: 1 | K136: Panneaux
A137: Fermacell | C137: 1125 | D137: 0.3513888889 | E137: 0.36 | F137: 11 | G137: =SQRT(C137*D137*3600*E137) -> 715.7688174 | H137: 1665 | K137: Panneaux
A138: Fibralith panneau bois-ciment | C138: 360 | E138: 0.1 | F138: 3.7 | G138: 0 | K138: Panneaux
A139: Panneau Agepan | B139: 1.6 | C139: 560 | D139: =2000/3600 -> 0.5555555556 | E139: 0.09 | F139: 11 | G139: 317.4901573 | K139: Panneaux
A140: Panneau bois ciment DURIPANEL | B140: 1,2/1,4/1,6/1,8/2/2,2/2,4/2,5/2,8/2,9/3,2/3,5 | C140: 1250 | D140: 0.522 | E140: 0.26 | F140: 23 | G140: 781.4985605 | K140: Panneaux
A141: Panneau contreplaqué | C141: 500 | D141: 0.4166666667 | E141: 0.1 | F141: 700 | G141: 273.8612788 | H141: 4000 | K141: Panneaux
A142: Panneau de bois massif 3 couches | C142: 540 | D142: 0.6666666667 | E142: 0.14 | F142: 35 | G142: 425.9577444 | H142: 1636 | K142: Panneaux
A143: Panneau de particules agglomérées | C143: 600 | D143: 0.4166666667 | E143: 0.11 | F143: 70 | G143: 314.6426545 | H143: 2220 | K143: Panneaux
A144: Panneau MDF | C144: 528 | D144: 0.5555555556 | E144: 0.1 | F144: 12 | G144: 324.9615362 | H144: 2202 | K144: Panneaux
A145: Panneau OSB | B145: 1 | C145: 650 | D145: 0.47 | E145: 0.13 | F145: 70 | G145: 378.1190289 | H145: 2359 | K145: Panneaux
A146: Plaque plâtre BA... | B146: 1.3 | C146: 825 | D146: 0.28 | E146: 0.25 | F146: 7 | G146: 455.9605246 | H146: 1452 | K146: Panneaux
A147: Adobe | C147: 2000 | D147: 0.25 | E147: 0.53 | F147: 1.2 | G147: 976.7292358 | K147: Pierres_et_betons
A148: Ardoise | C148: 2700 | D148: 0.208 | E148: 2.1 | F148: 700 | G148: 2060.508675 | K148: Pierres_et_betons
A149: Béton caverneux | C149: 1700 | D149: 0.2777777778 | E149: 1.15 | F149: 80 | G149: 1398.213145 | H149: 255 | K149: Pierres_et_betons
A150: Beton cellulaire 400kg/m3 (marques courantes : thermopierre ytong siporex) | C150: 400 | D150: 0.2777777778 | E150: 0.145 | F150: 8 | G150: 240.8318916 | H150: 400 | K150: Pierres_et_betons
A151: Béton cellulaire 600 | C151: 600 | D151: 0.244 | E151: 0.22 | F151: 9 | G151: 340.5125548 | K151: Pierres_et_betons
A152: Béton cellulaire 800 | C152: 800 | D152: 0.244 | E152: 0.33 | F152: 10 | G152: 481.5574732 | K152: Pierres_et_betons
A153: Béton d'argile expansé | C153: 1700 | D153: 0.256 | E153: 1.05 | F153: 8 | G153: 1282.597365 | K153: Pierres_et_betons
A154: Béton de chaux-chanvre 270kg/m3 (toiture) | C154: 270 | D154: 0.1888888889 | E154: 0.13 | F154: 6 | G154: 154.4927183 | H154: 54 | K154: Pierres_et_betons
A155: Béton de chaux-chanvre 450 kg/m3 | C155: 450 | D155: 0.1888888889 | E155: 0.18 | F155: 8 | G155: 234.6912866 | H155: 90 | K155: Pierres_et_betons
A156: Béton de copeaux de bois | C156: 550 | D156: 0.5 | E156: 0.16 | F156: 3 | G156: 397.9949748 | K156: Pierres_et_betons
A157: Béton de fibres de bois | C157: 400 | D157: 0.5 | E157: 0.1 | F157: 3 | G157: 268.3281573 | K157: Pierres_et_betons
A158: Béton de pouzzolane | C158: 1300 | D158: 0.244 | E158: 0.44 | F158: 3 | G158: 708.8334078 | K158: Pierres_et_betons
A159: Béton plein | C159: 2150 | D159: 0.2777777778 | E159: 1.65 | F159: 105 | G159: 1883.48082 | H159: 430 | K159: Pierres_et_betons
A160: Béton terre-paille 600kg/m3 | C160: 600 | D160: 0.3469444444 | E160: 0.17 | F160: 3 | G160: 356.9285643 | H160: 18 | K160: Pierres_et_betons
A161: Calcaire demi-ferme | C161: 1950 | D161: 0.222 | E161: 1.4 | F161: 80 | G161: 1477.097153 | K161: Pierres_et_betons
A162: Calcaire dur | C162: 2400 | D162: 0.222 | E162: 2.2 | F162: 80 | G162: 2054.209337 | K162: Pierres_et_betons
A163: Calcaire ferme | C163: 2200 | D163: 0.222 | E163: 1.7 | F163: 80 | G163: 1728.874779 | K163: Pierres_et_betons
A164: Calcaire tendre | C164: 1500 | D164: 0.222 | E164: 0.95 | F164: 80 | G164: 1067.173838 | K164: Pierres_et_betons
A165: Carreau de plâtre | C165: 957 | D165: 0.2777777778 | E165: 0.32 | F165: 7 | G165: 553.3895554 | H165: 1311 | K165: Pierres_et_betons
A166: Carrelage | C166: 2300 | D166: 0.194 | E166: 1.7 | F166: 1000000000 | G166: 1652.496293 | K166: Pierres_et_betons
A167: Granites | C167: 2600 | D167: 0.2777777778 | E167: 2.8 | F167: 10000 | G167: 2698.147513 | H167: 0 | K167: Pierres_et_betons
A168: Grès | C168: 1700 | D168: 0.2 | E168: 1.01 | F168: 1000000000 | G168: 1111.863301 | K168: Pierres_et_betons
A169: Marbre | C169: 2590 | D169: 0.222 | E169: 2.9 | F169: 1000000000 | G169: 2450.059428 | K169: Pierres_et_betons
A170: Pierre ferme et demi ferme | C170: 1895 | D170: 0.2777777778 | E170: 1.4 | F170: 45 | G170: 1628.803242 | H170: 0 | K170: Pierres_et_betons
A171: Pierre très tendre | C171: 1590 | D171: 0.2777777778 | E171: 0.85 | F171: 25 | G171: 1162.540322 | H171: 16 | K171: Pierres_et_betons
A172: Shistes, ardoises | C172: 2400 | D172: 0.2777777778 | E172: 2.2 | F172: 900 | G172: 2297.825059 | H172: 0 | K172: Pierres_et_betons
A173: Terre cuite | C173: 1900 | D173: 0.25 | E173: 1.15 | F173: 10 | G173: 1402.319507 | K173: Pierres_et_betons
A174: Terre sèche | C174: 1500 | D174: 0.25 | E174: 0.75 | F174: 10 | G174: 1006.23059 | K174: Pierres_et_betons
A175: Terre végétale | C175: 1700 | D175: 0.17 | E175: 1.26 | F175: 10 | G175: 1144.94716 | K175: Pierres_et_betons
A176: Acier | C176: 7850 | D176: 0.136 | E176: 46 | F176: 1000000000 | G176: 13296.41155 | K176: Verres_et_metaux
A177: Acier Inox | C177: 7900 | D177: 0.142 | E177: 16 | F177: 1000000000 | G177: 8038.387898 | K177: Verres_et_metaux
A178: Aluminium | C178: 2700 | D178: 0.239 | E178: 200 | F178: 1000000000 | G178: 21554.95303 | K178: Verres_et_metaux
A179: Cuivre | C179: 8940 | D179: 0.105 | E179: 389 | F179: 1000000000 | G179: 36256.79909 | K179: Verres_et_metaux
A180: Eau | C180: 998 | D180: 1.16 | E180: 0.6 | F180: 1000000000 | G180: 1581.325014 | K180: Verres_et_metaux
A181: Métal ferreux | C181: 8900 | D181: 0.116 | E181: 150 | F181: 1000000000 | G181: 23611.3532 | K181: Verres_et_metaux
A182: Verre plat | C182: 2490 | D182: 0.231 | E182: 1.16 | F182: 1000000000 | G182: 1549.836585 | K182: Verres_et_metaux
A183: Zinc | C183: 6600 | D183: 0.116 | E183: 113 | F183: 1000000000 | G183: 17647.83499 | K183: Verres_et_metaux

Sheet sauvegarde (hidden)
A1: Un exemple | B1: Panneaux | C1: Plaque plâtre BA... | D1: 1.3 | E1: 600 | F1: 45 | H1: mur | I1: Un exemple | L1: Bardage_ventile
A2: ... | B2: Ossature_bois | C2: Ossature bois 1 | D2: 8 | E2: 600 | F2: 45 | G2: cellulose | I2: Exemple avec condensation | L2: Blocs
A3: ... | B3: Films | C3: Freine vapeur (Sd=5m) | D3: 0.4 | E3: 600 | F3: 45 | L3: Bois
A4: ... | B4: Ossature_bois | C4: Ossature bois 2 | D4: 18 | E4: 600 | F4: 45 | G4: cellulose | L4: Films
A5: ... | B5: Panneaux | C5: Panneau OSB | D5: 1 | E5: 600 | F5: 45 | L5: Isolants_et_plastiques
A6: ... | B6: Films | C6: Pare-pluie (Sd=0,1) | D6: 0.4 | E6: 600 | F6: 45 | L6: Lame_dair
A7: ... | B7: Bardage_ventile | C7: Forfait RT 2005 : R=0,13 | D7: 5 | E7: 600 | F7: 45 | L7: Mortiers_et_plâtres
A8: ... | D8: - | E8: 600 | F8: 45 | L8: Ossature_bois
A9: ... | D9: - | E9: 600 | F9: 45 | L9: Panneaux
A10: ... | D10: - | E10: 600 | F10: 45 | L10: Pierres_et_betons
A11: Exemple avec condensation | B11: Panneaux | C11: Plaque plâtre BA... | D11: 1.3 | E11: 600 | F11: 45 | H11: mur | L11: test
A12: ... | B12: Ossature_bois | C12: Ossature bois 1 | D12: 24 | E12: 600 | F12: 45 | G12: cellulose | L12: Verres_et_metaux
A13: ... | B13: Films | C13: Freine vapeur (Sd=5m) | D13: 0.4 | E13: 600 | F13: 45
A14: ... | B14: Ossature_bois | C14: Ossature bois 2 | D14: 18 | E14: 600 | F14: 45 | G14: cellulose
A15: ... | B15: Panneaux | C15: Panneau OSB | D15: 1 | E15: 600 | F15: 45
A16: ... | B16: Films | C16: Pare-pluie (Sd=0,1) | D16: 0.4 | E16: 600 | F16: 45
A17: ... | B17: Bardage_ventile | C17: Forfait RT 2005 : R=0,13 | D17: 5 | E17: 600 | F17: 45
A18: ... | D18: - | E18: 600 | F18: 45
A19: ... | D19: - | E19: 600 | F19: 45
A20: ... | D20: - | E20: 600 | F20: 45
